{"text_format":"1","workbook":"xlsx","n_sheets":12,"sheets":["tytuł","ID","OPIS","POTRZEBY","Zakres rzeczowy","PF1 ŚWiO","PF1 LEAS","PF1fin","PF2","PF3","zal 1 PF2","zal 2 PF2"],"not_rendered":{"charts":0,"images":34,"macros":1,"external_links":0,"defined_names":14,"comments":5,"pivot_tables":0},"unopened":[],"bounds":{"document_bytes":16777216,"sheet_cells":100000,"rows_first":2000,"rows_last":500,"rows_between":2000,"halvings":0,"cell_chars":16384,"cell_head_chars":4096},"cells_cut":0,"cells_raw":0,"read":"whole","date_system":"1900"}

{"sheet":"tytuł","index":0,"n_rows":23,"n_cols":14,"rows_kept":23,"cut":false,"hidden":false,"merged":[[22,2,25,11],[21,2,21,11],[7,9,7,10],[10,3,11,10],[13,5,13,8],[15,2,19,11]]}
[]
[null,null,null,null,null,null,null,null,null,null,null,null,null,"następna"]
[]
[]
[]
[]
[]
[null,null,null,null,null,null,null,null,null,"W-1.1_413_311"]
[]
[]
[null,null,null,"Ekonomiczny plan operacji"]
[]
[]
[]
[]
[null,null,"Załącznik                                                                                                do wniosku o przyznanie pomocy dla działania                                          413 \"Wdrażanie lokalnych strategii rozwoju\" dla operacji, które odpowiadają warunkom przyznania pomocy w ramach działania 311 \"Różnicowanie w kierunku działalności nierolniczej\" \nw ramach Programu Rozwoju Obszarów Wiejskich \nna lata 2007 - 2013\n"]
[]
[]
[]
[]
[]
[null,null,"znak sprawy                                                                                                                                                                                                  (wypełnia pracownik OR)"]
[null,null,"UWAGA: \n1. Niniejszy dokument nie jest wypełniany w częściach oznaczonych „*” w przypadku, gdy: \n        - wartość kosztów kwalifikowalnych operacji nie przekracza 50.000 PLN bez względu na kategorię operacji,\n        - operacja jest realizowana w związku z podjęciem lub rozwijaniem działalności polegającej na \n          wynajmowaniu pokoi oraz sprzedaży posiłków domowych lub świadczeniu innych usług związanych z \n          pobytem turystów w gospodarstwie rolnym. \n2. W pozostałych przypadkach wnioskodawca wypełnia cały dokument.\n"]

{"sheet":"ID","index":1,"n_rows":28,"n_cols":12,"rows_kept":28,"cut":false,"hidden":false,"merged":[[15,4,15,7],[5,3,6,3],[5,4,6,6],[5,7,6,7],[28,2,28,7],[18,4,18,7],[19,4,19,7],[20,4,20,7],[23,3,23,4],[5,2,6,2],[16,4,16,7],[17,4,17,7],[24,3,24,4],[14,4,14,7]]}
[null,null,null,null,null,null,null,null,null,"następna"]
[]
[null,null,null,null,"EKONOMICZNY PLAN OPERACJI",null,null,null,null,null,null,"Rolnik"]
[null,null,"I. IDENTYFIKACJA WNIOSKODAWCY",null,null,null,null,null,null,null,null,"Małżonek rolnika"]
[null,null,null,null,null,null,null,null,null,null,null,"Domownik"]
[null,null,"1.","Imię i nazwisko rolnika / małżonka rolnika / domownika"]
[]
[null,null,"2. ","Numer identyfikacyjny","2.1. Producenta",null,"2.2. NIP Wnioskodawcy"]
[]
[]
[null,null,"II. CHARAKTERYSTYKA PLANOWANEJ OPERACJI"]
[null,null,"II.1 INFORMACJE WSTĘPNE"]
[]
[null,null,"a) Lokalizacja operacji (miejsce realizacji inwestycji)"]
[null,null,"województwo "]
[null,null,"powiat"]
[null,null,"gmina  "]
[null,null,"ulica / oznaczenie działki "]
[null,null,"nr domu / nr lokalu"]
[null,null,"miejscowość"]
[null,null,"kod - pocztowy, poczta"]
[]
[null,null,"b) Rodzaj działalności objętej operacją"]
[null,null,"Lp.","Oznaczenie działalności",null,"Kod PKD","Podejmowana","Rozwijana"]
[null,null,1,null,null,null,null,null,null,null,null,"X"]
[null,null,null,null,null,null,null,null,null,1,null,"-"]
[null,null,"II.2 OPIS OPERACJI"]
[null,null,"a) Opis planowanej operacji (max 500 słów)"]

{"sheet":"OPIS","index":2,"n_rows":14,"n_cols":14,"rows_kept":14,"cut":false,"hidden":false,"merged":[[12,3,12,4],[11,3,11,4],[4,8,5,8],[4,6,5,6],[4,4,5,4],[2,2,2,7],[4,7,5,7],[3,2,3,6],[4,5,5,5],[4,3,5,3],[10,3,10,4]]}
["poprzednia",null,null,null,null,null,null,null,null,null,"następna",null,null,"X"]
[null,null,null,null,null,null,null,null,null,null,null,null,null,"-"]
[null,null,"II. CHARAKTERYSTYKA PLANOWANEJ OPERACJI",null,null,null,null,null,null,null,null,null,null,"bardzo dobry"]
[null,null,"II.2.b) Posiadane zaplecze do prowadzenia działalności rolniczej i gospodarczej",null,null,null,null,null,null,null,null,null,null,"dobry"]
[null,null,"Charakterystyka  istniejących nieruchomości ","Rodzaj nieruchomości","Powierzchnia/ Kubatura","Posiadanie zależne","Rok budowy","Stan techniczny","Zaplecze planowanej operacji",null,null,null,null,"średni "]
[null,null,null,null,null,null,null,null,null,null,null,null,null,"zły"]
[null,null,null,"Grunty:","ha fizyczne","x","x","x","x"]
[null,null,null,null,null,null,"x","x",null,null,null,1]
[null,null,null,"Budynki/budowle:","m2/m3","x","x","x","x",null,null,2]
[null,null,null,null,null,null,null,null,null,null,null,3]
[null,null,"Posiadane maszyny/ urządzenia/pojazdy","Nazwa i typ maszyny/ urządzenia/ pojazdu",null,"Posiadanie zależne","Rok produkcji","Stan techniczny","Zaplecze planowanej operacji",null,null,4]
[null,null,null,null,null,null,null,null,null,null,null,5]
[null,null,"Inne elementy zaplecza",null,null,null,null,null,null,null,null,7]
[null,null,null,null,null,null,null,null,null,null,null,8]

{"sheet":"POTRZEBY","index":3,"n_rows":20,"n_cols":20,"rows_kept":20,"cut":false,"hidden":false,"merged":[[16,4,17,4],[11,2,12,2],[11,8,11,9],[13,6,13,7],[14,3,14,9],[13,3,13,5],[7,2,7,5],[5,2,5,5],[5,6,7,6],[18,5,18,6],[16,2,17,2],[16,3,17,3],[15,2,15,9],[16,9,17,9],[16,7,16,8],[16,5,17,6],[8,6,8,9],[11,6,12,7],[11,3,12,5],[2,2,2,9],[3,2,3,9],[9,2,9,9],[10,2,10,9],[4,2,4,9],[6,2,6,5],[8,2,8,5]]}
["poprzednia",null,null,null,null,null,null,null,null,null,null,"następna"]
[]
[null,null,{"$f":"+OPIS!C3","v":"II. CHARAKTERYSTYKA PLANOWANEJ OPERACJI"}]
[null,null,"II.2.c) Analiza potrzeb i korzyści ",null,null,null,null,null,null,null,null,null,"X"]
[null,null,"1. Wpływ planowanej operacji na liczbę miejsc pracy i dochód z działalności pozarolniczej.",null,null,null,null,null,null,null,null,null,"-"]
[null,null,"Liczba planowanych do utworzenia stałych miejsc pracy",null,null,null,"Osoby ",null,"Etaty"]
[null,null,"Liczba planowanych do utworzenia sezonowych miejsc pracy"]
[null,null,"Liczba planowanych do zachowania miejsc pracy",null,null,null,null,null,null,null,null,null,"wyższa"]
[null,null,"Wzrost dochodu z działalności pozarolniczej",null,null,null,null,null,null,null,null,null,"niższa"]
[null,null,"2. Charakterystyka produktu i działania marketingowe",null,null,null,null,null,null,null,null,null,"równa"]
[null,null,"Produkty / usługi, jakie będą oferowane w wyniku realizacji operacji."]
[null,null,"Lp.","Produkt / usługa",null,null,"Poziom cen",null,"Produkt / usługa"]
[null,null,null,null,null,null,null,null,"nowy","kontynuacja"]
[null,null,1]
[null,null,"Plan marketingowy",null,null,null,null,null,null,null,null,null,1]
[null,null,"3. Zestawienie zakresu rzeczowego operacji (opis zadań)"]
[null,null,"Poz. zestawienia","Nazwa dostawcy","Marka, typ lub rodzaj","Parametr (y) charakteryzujący przedmiot (przedział mocy lub wydajności itp.)",null,"Planowane wykorzystanie (%)",null,"Wartość Zadania [wybranej oferty (zł)]"]
[null,null,null,null,null,null,null,"rok I","rok docelowy",null,null,null,null,null,null,null,null,null,null,{"$f":"+SUM($T$19:$T$9999)","v":0}]
[null,null,null,null,null,null,null,null,null,null,null,null,null,null,null,null,null,null,1,{"$f":"+J19","v":0}]
[null,null,null,null,null,null,null,null,"RAZEM",{"$f":"+$T$18","v":0},null,null,2]

{"sheet":"Zakres rzeczowy","index":4,"n_rows":8,"n_cols":12,"rows_kept":8,"cut":false,"hidden":false,"merged":[[8,2,8,9],[2,2,2,9],[3,2,3,9],[4,2,4,9],[5,2,5,9],[6,2,6,9],[7,2,7,9]]}
["poprzednia",null,null,null,null,null,null,null,null,null,null,"następna"]
[]
[null,null,{"$f":"+OPIS!C3","v":"II. CHARAKTERYSTYKA PLANOWANEJ OPERACJI"}]
[null,null,"II.2.c) Analiza potrzeb i korzyści "]
[null,null,"3. Zestawienie zakresu rzeczowego operacji (opis zadań)"]
[null,null,"Uzasadnienie wyboru oferty"]
[]
[null,null,"Wpływ zakresu rzeczowego operacji na zakładany poziom sprzedaży"]

{"sheet":"PF1 ŚWiO","index":5,"n_rows":30,"n_cols":42,"rows_kept":30,"cut":false,"hidden":false,"merged":[[26,15,26,16],[25,11,25,12],[26,11,26,12],[26,5,26,6],[26,13,26,14],[26,7,26,8],[25,13,25,14],[25,15,25,16],[33,2,33,8],[18,2,21,2],[18,9,21,9],[18,8,21,8],[25,2,27,2],[25,3,25,4],[26,3,26,4],[18,3,21,4],[25,9,25,10],[26,9,26,10],[13,2,13,9],[14,2,14,9],[18,10,18,16],[18,5,21,7],[23,2,23,8],[25,7,25,8],[22,3,22,4],[22,5,22,7],[24,2,24,16],[25,5,25,6],[5,2,6,9],[7,3,7,9],[8,3,8,9],[9,3,12,3],[9,4,9,9],[10,4,10,9],[11,4,11,9],[12,4,12,9],[7,2,12,2]]}
["poprzednia",null,null,null,null,null,null,null,null,null,null,null,null,null,null,null,null,null,"następna"]
[]
[null,null,"III. PROJEKCJA FINANSOWA"]
[null,null,"III.1 ŚRODKI WŁASNE"]
[]
[null,null,"Roczny dochód netto gospodarstwa / przedsiębiorstwa, w tym:",null,null,null,null,null,null,null,"Rok poprzedni","Rok bieżący","Rok","Rok","Rok","Rok","Rok"]
[null,null,null,null,null,null,null,null,null,null,{"$f":"+L7-1","v":2012},2013,{"$f":"L7+1","v":2014},{"$f":"M7+1","v":2015},{"$f":"N7+1","v":2016},{"$f":"O7+1","v":2017},{"$f":"P7+1","v":2018}]
[null,null,null,"Z tytułu prowadzonej działalności rolniczej"]
[null,null,null,"Z tytułu działalności pozarolniczej objętej operacją"]
[null,null,null,"Z innych źródeł: ","1. wynagrodzenia",null,null,null,null,null,null,null,null,null,null,null,null,null,null,null,{"$f":"SUM(U15:U246)","v":0},0,0,0,0,0,0,0,0,0,0,0,0,0,0,0,0,0,0,0,0,0]
[null,null,null,null,"2. inna działalność pozarolnicza"]
[null,null,null,null,"3. świadczenia emerytalno - rentowe"]
[null,null,null,null,"inne ……"]
[null,null,"DOCHÓD RAZEM",null,null,null,null,null,null,null,{"$f":"SUM(K8:K13)","v":0},{"$f":"SUM(L8:L13)","v":0},0,0,0,0,0]
[null,null,"Stan środków finansowych Wnioskodawcy na sfinansowanie operacji"]
[]
[null,null,"III.2. ŚRODKI OBCE NA SFINANSOWANIE OPERACJI"]
[]
[null,null,"Lp.","Oznaczenie/numer umowy/\nrodzaj zadłużenia \n(np. kredyt, pożyczka)\n",null,"Przedmiot / cel umowy ",null,null,"Rok zaciągnięcia zobowiązań","Kwota zadłużenia","Wykorzystanie środków obcych do finansowania kosztów operacji w okresie realizacji operacji"]
[]
[null,null,null,null,null,null,null,null,null,null,{"$f":"+K6","v":"Rok poprzedni"},"Rok bieżący","Rok","Rok","Rok","Rok","Rok"]
[null,null,null,null,null,null,null,null,null,null,{"$f":"+K7","v":2012},{"$f":"+L7","v":2013},{"$f":"M7","v":2014},{"$f":"M22+1","v":2015},{"$f":"N22+1","v":2016},{"$f":"O22+1","v":2017},{"$f":"P22+1","v":2018},null,null,1]
[null,null,1,null,null,null,null,null,null,null,null,null,null,null,null,null,null,null,null,null,{"$f":"J23","v":0},0,0,0,0,0,0,0]
[null,null,"RAZEM",null,null,null,null,null,null,{"$f":"U10","v":0},0,0,0,0,0,0,0,null,null,2]
[null,null,"Obsługa zadłużenia w kolejnych latach (kapitał + odsetki)"]
[null,null,"Lp.",{"$f":"+K21","v":"Rok poprzedni"},null,{"$f":"+L21","v":"Rok bieżący"},null,{"$f":"+M21","v":"Rok"},null,{"$f":"+N21","v":"Rok"},null,{"$f":"+O21","v":"Rok"},null,{"$f":"+P21","v":"Rok"},null,{"$f":"+Q21","v":"Rok"}]
[null,null,null,{"$f":"+K22","v":2012},null,{"$f":"+L22","v":2013},null,{"$f":"+M22","v":2014},null,{"$f":"+N22","v":2015},null,{"$f":"+O22","v":2016},null,{"$f":"+P22","v":2017},null,{"$f":"+Q22","v":2018}]
[null,null,null,"Kapitał ","Odsetki","Kapitał ","Odsetki","Kapitał ","Odsetki","Kapitał ","Odsetki","Kapitał ","Odsetki","Kapitał ","Odsetki","Kapitał ","Odsetki",null,null,3]
[null,null,1,null,null,null,null,null,null,null,null,null,null,null,null,null,null,null,null,null,null,null,null,null,null,null,null,null,{"$f":"+D29","v":0},0,0,0,0,0,0,0,0,0,0,0,0,0]
[null,null,"RAZEM",{"$f":"+AC10","v":0},{"$f":"+AD10","v":0},0,0,0,0,0,0,0,0,0,0,0,0,null,null,4]

{"sheet":"PF1 LEAS","index":6,"n_rows":17,"n_cols":40,"rows_kept":17,"cut":false,"hidden":false,"merged":[[5,15,8,16],[5,3,8,6],[5,7,8,12],[5,13,8,14],[9,13,9,14],[5,2,8,2],[9,15,9,16],[13,13,13,14],[12,3,12,6],[13,3,13,6],[9,3,9,6],[9,7,9,12],[13,9,13,10],[10,2,10,14],[12,13,12,14],[12,9,12,10],[10,15,10,16],[15,3,15,4],[15,5,15,6],[11,2,11,16],[12,15,12,16],[13,15,13,16],[12,11,12,12],[13,11,13,12],[14,3,14,4],[14,5,14,6],[20,2,20,8],[12,2,14,2],[16,3,16,4],[16,5,16,6],[12,7,12,8],[13,7,13,8]]}
["poprzednia",null,null,null,null,null,null,null,null,null,null,null,null,null,null,null,null,null,"następna"]
[]
[null,null,"III. PROJEKCJA FINANSOWA"]
[null,null,"III.3. LEASING"]
[null,null,null,null,null,null,null,null,null,null,null,null,null,null,null,null,null,null,null,null,{"$f":"+SUM(U10:U457)","v":0},null,null,null,null,null,null,null,{"$f":"+SUM(AC10:AC457)","v":0},{"$f":"+SUM(AD10:AD457)","v":0},0,0,0,0,0,0,0,0,0,0]
[null,null,"Lp.","Oznaczenie/numer promesy leasingowej",null,null,null,"Przedmiot promesy (umowy) leasingowej",null,null,null,null,null,"Planowany rok zaciągnięcia zobowiązań",null,"Planowana kwota zadłużenia"]
[]
[]
[null,null,null,null,null,null,null,null,null,null,null,null,null,null,null,null,null,null,null,1]
[null,null,1,null,null,null,null,null,null,null,null,null,null,null,null,null,null,null,null,null,{"$f":"+P10","v":0}]
[null,null,"RAZEM",null,null,null,null,null,null,null,null,null,null,null,null,{"$f":"+U5","v":0},null,null,null,2]
[null,null,"Obsługa zadłużenia w kolejnych latach (kapitał + odsetki)"]
[null,null,"Lp.","Rok bieżący",null,null,null,"Rok",null,{"$f":"+H13","v":"Rok"},null,{"$f":"+J13","v":"Rok"},null,{"$f":"+L13","v":"Rok"},null,{"$f":"+N13","v":"Rok"}]
[null,null,null,{"$f":"+'PF1 ŚWiO'!L7","v":2013},null,null,null,{"$f":"+D14+1","v":2014},null,{"$f":"+H14+1","v":2015},null,{"$f":"+J14+1","v":2016},null,{"$f":"+L14+1","v":2017},null,{"$f":"+N14+1","v":2018}]
[null,null,null,"Kapitał ",null,"Odsetki",null,"Kapitał ","Odsetki","Kapitał ","Odsetki","Kapitał ","Odsetki","Kapitał ","Odsetki","Kapitał ","Odsetki",null,null,3]
[null,null,1,null,null,null,null,null,null,null,null,null,null,null,null,null,null,null,null,null,null,null,null,null,null,null,null,null,{"$f":"+D16","v":0},{"$f":"+F16","v":0},{"$f":"+H16","v":0},{"$f":"+I16","v":0},0,0,0,0,0,0,0,0]
[null,null,"RAZEM",{"$f":"+AC5","v":0},null,{"$f":"+AD5","v":0},null,{"$f":"+AE5","v":0},{"$f":"+AF5","v":0},0,0,0,0,0,0,0,0,null,null,4]

{"sheet":"PF1fin","index":7,"n_rows":26,"n_cols":37,"rows_kept":26,"cut":false,"hidden":false,"merged":[[8,8,8,12],[11,2,11,6],[8,3,9,6],[8,2,9,2],[8,7,9,7],[10,3,10,6],[25,2,25,6],[22,8,22,12],[22,2,23,2],[22,3,23,4],[22,5,23,6],[22,7,23,7],[24,3,24,4],[24,5,24,6],[17,2,17,6],[15,2,15,6],[14,2,14,6],[12,2,12,6],[21,2,21,8],[13,3,13,6],[18,2,18,6],[16,3,16,6]]}
["poprzednia",null,null,null,null,null,null,null,null,null,null,null,null,null,"następna"]
[null,null,null,null,null,null,null,null,null,null,null,null,null,null,null,null,null,null,null,{"$f":"+SUM(W2:AF2)","v":0},null,null,{"$f":"+W4*(0.08*(7-W3))","v":0},{"$f":"+X4*(0.08*(7-X3))","v":0},0,0,0,0,0,0,0,0,{"$f":"+IF(I10-2007<0,0,AG7)","v":0},{"$f":"+IF(J10-2007<0,0,AH7)","v":0},{"$f":"+IF(K10-2007<0,0,AI7)","v":0},{"$f":"+IF(L10-2007<0,0,AJ7)","v":0},{"$f":"+IF(M10-2007<0,0,AK7)","v":0}]
[null,null,null,null,null,null,null,null,null,null,null,null,null,null,null,null,null,null,null,null,null,null,{"$f":"+I10-'PF1 ŚWiO'!$L$7+1","v":1},{"$f":"+J10-'PF1 ŚWiO'!$L$7+1","v":2},{"$f":"+K10-'PF1 ŚWiO'!$L$7+1","v":3},{"$f":"+L10-'PF1 ŚWiO'!$L$7+1","v":4},{"$f":"+M10-'PF1 ŚWiO'!$L$7+1","v":5},{"$f":"+W3","v":1},2,3,4,5,1,2,3,4,5]
[null,null,"III. PROJEKCJA FINANSOWA",null,null,null,null,null,null,null,null,null,null,null,null,null,null,null,null,{"$f":"+SUM(W4:AF4)","v":0},null,null,{"$f":"+IF(W3>0,W7,0)","v":0},0,0,0,0,0,0,0,0,0,{"$f":"+IF(AB3>1,AG2,SUM($AG$2:AG2))","v":0},{"$f":"+IF(AC3>1,AH2,SUM($AG$2:AH2))","v":0},{"$f":"+IF(AD3>1,AI2,SUM($AG$2:AI2))","v":0},{"$f":"+IF(AE3>1,AJ2,SUM($AG$2:AJ2))","v":0},{"$f":"+IF(AF3>1,AK2,SUM($AG$2:AK2))","v":0}]
[]
[null,null,"III.4 KOSZTY OPERACJI",null,null,null,null,null,null,null,null,null,null,null,null,null,null,null,null,"ki","kl","ko","ki t1","ki t2","ki t3","ki t4","ki t5","kl t1","kl t2","kl t3","kl t4","kl t5","ko t1","ko t2","ko t3","ko t4","ko t5"]
[null,null,"III.4.1 KOSZTY KWALIFIKOWALNE OPERACJI",null,null,null,null,null,null,null,null,null,null,null,null,null,null,null,null,{"$f":"+SUM(T8:T25)","v":0},0,0,0,0,0,0,0,0,0,0,0,0,0,0,0,0,0]
[]
[null,null,"Poz. Zestawienia","Koszty inwestycyjne nie objęte leasingiem (Ki)",null,null,null,"Wartość PLN","Planowany rok poniesienia kosztu"]
[null,null,null,null,null,null,null,null,{"$f":"+'PF1 ŚWiO'!L7","v":2013},{"$f":"+I10+1","v":2014},{"$f":"+J10+1","v":2015},{"$f":"+K10+1","v":2016},{"$f":"+L10+1","v":2017}]
[null,null,null,null,null,null,null,{"$f":"I11+J11+K11+L11+M11","v":0},null,null,null,null,null,null,null,5,null,null,null,{"$f":"+H11","v":0},null,null,{"$f":"+I11","v":0},{"$f":"+J11","v":0},{"$f":"+K11","v":0},{"$f":"+L11","v":0},{"$f":"+M11","v":0}]
[null,null,"RAZEM",null,null,null,null,{"$f":"+T7","v":0},{"$f":"+W7","v":0},{"$f":"+X7","v":0},{"$f":"+Y7","v":0},{"$f":"+Z7","v":0},{"$f":"+AA7","v":0},null,null,3]
[null,null,"Koszty inwestycyjne objęte leasingiem (Kl)"]
[null,null,null,null,null,null,null,{"$f":"I14+J14+K14+L14+M14","v":0},null,null,null,null,null,null,null,2,null,null,null,null,{"$f":"+H14","v":0},null,null,null,null,null,null,{"$f":"+I14","v":0},{"$f":"+J14","v":0},{"$f":"+K14","v":0},{"$f":"+L14","v":0},{"$f":"+M14","v":0}]
[null,null,"RAZEM",null,null,null,null,{"$f":"+U7","v":0},{"$f":"+AB7","v":0},{"$f":"+AC7","v":0},{"$f":"+AD7","v":0},{"$f":"+AE7","v":0},{"$f":"+AF7","v":0},null,null,1]
[null,null,"Koszty ogólne (Ko)"]
[null,null,null,null,null,null,null,{"$f":"I17+J17+K17+L17+M17","v":0},null,null,null,null,null,null,null,8,null,null,null,null,null,{"$f":"+H17","v":0},null,null,null,null,null,null,null,null,null,null,{"$f":"+I17","v":0},{"$f":"+J17","v":0},{"$f":"+K17","v":0},{"$f":"+L17","v":0},{"$f":"+M17","v":0}]
[null,null,"RAZEM",null,null,null,null,{"$f":"+V7","v":0},{"$f":"+AG7","v":0},{"$f":"+AH7","v":0},{"$f":"+AI7","v":0},{"$f":"+AJ7","v":0},{"$f":"+AK7","v":0},null,null,7]
[null,null,"Suma kosztów kwalifikowalnych operacji (Ki+Kl+Ko):",null,null,null,null,{"$f":"+SUM(T7:V7)","v":0},{"$f":"+W7+AB7+AG7","v":0},{"$f":"+X7+AC7+AH7","v":0},{"$f":"+Y7+AD7+AI7","v":0},{"$f":"+Z7+AE7+AJ7","v":0},{"$f":"+AA7+AF7+AK7","v":0}]
[]
[]
[null,null,"III.4.2 Zestawienie zakresu towarzyszącego operacji - koszty niekwalifikowalne"]
[null,null,"Lp.","Nazwa zadania",null,"Parametry techniczne (m2, m3, moc, wydajność itp.)",null,"Wartość PLN","Planowany rok poniesienia kosztu"]
[null,null,null,null,null,null,null,null,{"$f":"I10","v":2013},{"$f":"I24+1","v":2014},{"$f":"J24+1","v":2015},{"$f":"K24+1","v":2016},{"$f":"L24+1","v":2017},null,null,10]
[null,null,null,null,null,null,null,{"$f":"SUM(I25:M25)","v":0}]
[null,null,"Suma kosztów niekwalifikowalnych operacji",null,null,null,null,{"$f":"SUM(I26:M26)","v":0},{"$f":"SUM(I24:I25)-I24","v":0},{"$f":"SUM(J24:J25)-J24","v":0},{"$f":"SUM(K24:K25)-K24","v":0},{"$f":"SUM(L24:L25)-L24","v":0},{"$f":"SUM(M24:M25)-M24","v":0},null,null,11]

{"sheet":"PF2","index":8,"n_rows":32,"n_cols":16,"rows_kept":32,"cut":false,"hidden":false,"merged":[[31,1,31,2],[24,1,24,2],[25,1,25,2],[26,1,26,2],[28,1,28,2],[27,1,27,2],[29,1,29,2],[23,1,23,2],[20,1,21,2],[16,1,16,2],[30,1,30,2],[10,4,10,9],[11,4,11,9],[3,1,3,10],[13,1,14,1],[13,2,14,2],[22,1,22,2],[6,1,7,1],[6,2,7,2]]}
["poprzednia",null,null,null,null,null,null,null,null,null,"następna",null,null,null,{"$f":"M15","v":16},"I wiersz"]
[null,null,null,null,null,null,null,null,null,null,null,null,null,null,{"$f":"M17","v":17},"II wiersz"]
[null,"III. PROJEKCJA FINANSOWA",null,null,null,null,null,null,null,null,null,null,null,null,{"$f":"(O2-O1)-1","v":0},"count dodane"]
[null,"III. 5 PLANOWANE PRZYCHODY I KOSZTY ZWIĄZANE Z OPERACJĄ",null,null,null,null,null,null,null,null,null,null,null,null,null,0]
[null,"III.5.1  PROGNOZA SPRZEDAŻY W WYNIKU REALIZACJI OPERACJI"]
[]
[null,"1. \nProdukt/usługa\nTabela ilościowa","Jedn. sprzedaży","Rok poprzedni ","Rok bieżący","Rok ","Rok ","Rok ","Rok ","Rok "]
[null,null,null,{"$f":"+E8-1","v":2012},{"$f":"+'PF1 ŚWiO'!L7","v":2013},{"$f":"+E8+1","v":2014},{"$f":"+F8+1","v":2015},{"$f":"+G8+1","v":2016},{"$f":"+H8+1","v":2017},{"$f":"+I8+1","v":2018},null,1]
[]
[null,null,null,null,null,null,null,null,null,null,null,11]
[null,"2. \nProdukt/usługa","Cena w roku poprzednim","Cena bazowa","Uzasadnienie",null,null,null,null,null,null,2]
[null,{"$f":"+B9","v":0}]
[null,null,null,null,null,null,null,null,null,null,null,22]
[null,"3. \nProdukt/usługa\nTabela wartościowa",null,"Rok poprzedni ","Rok bieżący","Rok ","Rok ","Rok ","Rok ","Rok "]
[null,null,null,{"$f":"+D8","v":2012},2013,2014,2015,2016,2017,2018,null,3,{"$f":"COUNTBLANK(M1:M14)+2","v":16}]
[null,{"$f":"B9","v":0},null,0,0,0,0,0,0,0,null,null,1]
[null,"RAZEM",null,{"$f":"SUM(D15:D16)-D15","v":0},0,0,0,0,0,0,null,33,{"$f":"SUM(M15:M16)","v":17}]
[]
[null,"III.5.2 KOSZTY DZIAŁALNOŚCI OBJĘTEJ OPERACJĄ"]
[]
[null,"Pozycja kosztów",null,"Rok poprzedni","Rok bieżący","Rok ","Rok ","Rok ","Rok ","Rok "]
[null,null,null,{"$f":"+D15","v":2012},2013,2014,2015,2016,2017,2018]
[null,"*amortyzacja"]
[null,"zużycie materiałów i energii"]
[null,"usługi obce (naprawy i konserwacje maszyn, budynków w tym czynsze)"]
[null,"podatki i opłaty"]
[null,"wynagrodzenia i pochodne"]
[null,"koszty finansowe"]
[null,"zakup towarów"]
[null,"ubezpieczenia majątkowe"]
[null,"pozostałe koszty"]
[null,"RAZEM",null,{"$f":"SUM(D23:D31)","v":0},{"$f":"SUM(E23:E31)","v":0},0,0,0,0,0]

{"sheet":"PF3","index":9,"n_rows":41,"n_cols":14,"rows_kept":41,"cut":false,"hidden":false,"merged":[[5,2,7,2],[19,2,19,4],[19,5,19,7],[5,3,6,3],[12,3,13,3],[12,4,13,4],[12,5,13,5],[12,6,13,6],[12,7,13,7],[40,2,40,4],[40,5,40,9],[39,2,39,4],[39,5,39,9],[12,8,13,8],[12,9,13,9],[23,2,37,9],[19,8,19,9]]}
["poprzednia"]
[]
[null,null,"III. PROJEKCJA FINANSOWA"]
[null,null,"III.5.3 ZAKTUALIZOWANA WARTOŚĆ NETTO"]
[]
[null,null,"Specyfikacja","Rok poprzedni","Rok ","Rok ","Rok","Rok","Rok","Rok"]
[null,null,null,null,"bieżący",{"$f":"+'PF1 ŚWiO'!L7+1","v":2014},{"$f":"+F7+1","v":2015},{"$f":"+G7+1","v":2016},{"$f":"+H7+1","v":2017},{"$f":"+I7+1","v":2018}]
[null,null,null,"X","N0","N1","N2","N3","N4","N5"]
[null,null,"1. Inwestycje dotyczące operacji",null,{"$f":"+SUMIF(PF1fin!W3:AK4,1,PF1fin!W4:AK4)+PF1fin!I26","v":0},{"$f":"+SUMIF(PF1fin!W3:AK4,2,PF1fin!W4:AK4)+PF1fin!J26","v":0},{"$f":"+SUMIF(PF1fin!W3:AK4,3,PF1fin!W4:AK4)+PF1fin!K26","v":0},{"$f":"+SUMIF(PF1fin!W3:AK4,4,PF1fin!W4:AK4)+PF1fin!L26","v":0},{"$f":"+SUMIF(PF1fin!W3:AK4,5,PF1fin!W4:AK4)+PF1fin!M26","v":0},{"$f":"+SUMIF(PF1fin!W3:AK4,6,PF1fin!W4:AK4)","v":0}]
[null,null,"2. Przychody ze sprzedaży (tab. III.5.1)",{"$f":"+'PF2'!D17","v":0},{"$f":"+'PF2'!E17","v":0},{"$f":"+'PF2'!F17","v":0},{"$f":"+'PF2'!G17","v":0},{"$f":"+'PF2'!H17","v":0},{"$f":"+'PF2'!I17","v":0},{"$f":"+'PF2'!J17","v":0}]
[null,null,"3. Koszty działalności  objętej operacją (tab. III.5.2)",{"$f":"+'PF2'!D32","v":0},{"$f":"+'PF2'!E32","v":0},{"$f":"+'PF2'!F32","v":0},{"$f":"+'PF2'!G32","v":0},{"$f":"+'PF2'!H32","v":0},{"$f":"+'PF2'!I32","v":0},{"$f":"+'PF2'!J32","v":0}]
[null,null,"4. Dochód brutto",{"$f":"+D10-D11","v":0},0,0,0,0,0,0]
[null,null,"*5. Podatek dochodowy, wg stopy:",null,{"$f":"IF(E12>0,E12*$C$14,0)","v":0},0,0,0,0,0]
[]
[null,null,"*6. Dochód netto",null,{"$f":"E12-E13","v":0},0,0,0,0,0]
[null,null,"*7. Wartość końcowa",null,null,null,null,null,null,{"$f":"PF1fin!H12+PF1fin!H15+PF1fin!H26-SUM(E17:J17)","v":0},null,null,{"$f":"SUM('PF2'!E23:J23)","v":0},"amort z tabeli"]
[null,null,"*8. Amortyzacja",null,{"$f":"'PF2'!E23","v":0},{"$f":"'PF2'!F23","v":0},{"$f":"'PF2'!G23","v":0},{"$f":"'PF2'!H23","v":0},{"$f":"'PF2'!I23","v":0},{"$f":"'PF2'!J23","v":0}]
[null,null,"*9. Saldo bieżące",null,{"$f":"E15+E17-E9","v":0},{"$f":"F15+F17-F9","v":0},{"$f":"G15+G17-G9","v":0},{"$f":"H15+H17-H9","v":0},{"$f":"I15+I17-I9","v":0},{"$f":"J15+J17+J16-J9","v":0},null,null,{"$f":"+PF1fin!T2","v":0},"amort autom"]
[null,null,"*10. Stopa dyskonta (%) / czynnik dyskontujący","X",1,{"$f":"1/(1+$K20)","v":0.95987713572662692},{"$f":"1/(1+$K20)^2","v":0.92136411569075338},{"$f":"1/(1+$K20)^3","v":0.88439634833053693},{"$f":"1/(1+$K20)^4","v":0.84891183368260392},{"$f":"1/(1+$K20)^5","v":0.8148510593996966},null,null,{"$f":"+PF1fin!T4","v":0},"suma kwalif"]
[null,null,"*NPV",null,null,{"$f":"+SUMPRODUCT(E18:J18,E19:J19)","v":0},null,null,null,null,4.1799999999999997E-2]
[]
[null,null,"IV. DODATKOWE INFORMACJE"]
[]
[]
[]
[]
[]
[]
[]
[]
[]
[]
[]
[]
[]
[]
[]
[]
[]
[null,null,".................................................................................................................",null,null,"......................................................................................"]
[null,null,"miejscowość i data",null,null,"czytelny podpis"]

{"sheet":"zal 1 PF2","index":10,"n_rows":32,"n_cols":12,"rows_kept":32,"cut":false,"hidden":false,"merged":[[6,2,7,2],[10,4,10,9],[11,4,11,9],[25,1,25,2],[13,1,14,1],[13,2,14,2],[16,1,16,2],[20,1,21,2],[24,1,24,2],[30,1,30,2],[31,1,31,2],[3,1,3,10],[26,1,26,2],[27,1,27,2],[28,1,28,2],[29,1,29,2],[22,1,22,2],[23,1,23,2],[6,1,7,1]]}
[]
[]
[null,"Załącznik 1. PROJEKCJA FINANSOWA OPARTA NA NOWYCH ROZWIĄZANIACH"]
[null,"I. PLANOWANE PRZYCHODY I KOSZTY ZWIĄZANE Z OPERACJĄ OPARTĄ NA NOWYCH (OSZCZĘDNIEJSZYCH) ROZWIĄZANIACH"]
[null,"I.1  PROGNOZA SPRZEDAŻY W WYNIKU REALIZACJI OPERACJI (OPARTEJ NA NOWYCH ROZWIĄZANIACH"]
[]
[null,"1. \nProdukt/usługa\nTabela ilościowa","Jedn. sprzedaży","Rok poprzedni ","Rok bieżący","Rok ","Rok ","Rok ","Rok ","Rok "]
[null,null,null,{"$f":"E8-1","v":2012},{"$f":"'PF1 ŚWiO'!L7","v":2013},{"$f":"E8+1","v":2014},{"$f":"F8+1","v":2015},{"$f":"G8+1","v":2016},{"$f":"H8+1","v":2017},{"$f":"I8+1","v":2018},null,1]
[]
[null,null,null,null,null,null,null,null,null,null,null,11]
[null,"2. \nProdukt/usługa","Cena w roku poprzednim","Cena bazowa","Uzasadnienie",null,null,null,null,null,null,2]
[]
[null,null,null,null,null,null,null,null,null,null,null,22]
[null,"3. \nProdukt/usługa\nTabela wartościowa",null,"Rok poprzedni ","Rok bieżący","Rok ","Rok ","Rok ","Rok ","Rok "]
[null,null,null,{"$f":"D8","v":2012},{"$f":"+E8","v":2013},2014,2015,2016,2017,2018,null,3]
[null,{"$f":"B9","v":0},null,{"$f":"D9*C12","v":0},{"$f":"E9*D12","v":0},{"$f":"F9*D12","v":0},{"$f":"G9*D12","v":0},{"$f":"H9*D12","v":0},{"$f":"I9*D12","v":0},{"$f":"J9*D12","v":0}]
[null,"RAZEM",null,{"$f":"SUM(D15:D16)-D15","v":0},0,0,0,0,0,0,null,33]
[]
[null,"I.2. KOSZTY DZIAŁALNOŚCI OBJĘTEJ OPERACJĄ OPARTĄ NA NOWYCH ROZWIĄZANICH"]
[]
[null,"Pozycja kosztów",null,"Rok poprzedni","Rok bieżący","Rok ","Rok ","Rok ","Rok ","Rok "]
[null,null,null,{"$f":"+D15","v":2012},2013,2014,2015,2016,2017,2018]
[null,"*amortyzacja"]
[null,"zużycie materiałów i energii"]
[null,"usługi obce (naprawy i konserwacje maszyn, budynków w tym czynsze)"]
[null,"podatki i opłaty"]
[null,"wynagrodzenia i pochodne"]
[null,"koszty finansowe"]
[null,"zakup towarów"]
[null,"ubezpieczenia majątkowe"]
[null,"pozostałe koszty"]
[null,"RAZEM",null,{"$f":"SUM(D23:D31)","v":0},{"$f":"SUM(E23:E31)","v":0},0,0,0,0,0]

{"sheet":"zal 2 PF2","index":11,"n_rows":32,"n_cols":12,"rows_kept":32,"cut":false,"hidden":false,"merged":[[6,2,7,2],[10,4,10,9],[11,4,11,9],[25,1,25,2],[13,1,14,1],[13,2,14,2],[16,1,16,2],[20,1,21,2],[24,1,24,2],[3,1,3,10],[30,1,30,2],[31,1,31,2],[26,1,26,2],[27,1,27,2],[28,1,28,2],[29,1,29,2],[22,1,22,2],[23,1,23,2],[6,1,7,1]]}
[]
[]
[null,"Załącznik 2. PROJEKCJA FINANSOWA OPRTA NA OBECNYCH ROZWIĄZANIACH"]
[null,"I. PLANOWANE PRZYCHODY I KOSZTY ZWIĄZANE Z OPERACJĄ OPARTA NA DOTYCHCZASOWYCH ROZWIĄZANICH"]
[null,"I.1.  PROGNOZA SPRZEDAŻY W WYNIKU REALIZACJI OPERACJI OPARTEJ NA DOTYCHCZASOWYCH ROZWIĄZANIACH "]
[]
[null,"1. \nProdukt/usługa\nTabela ilościowa","Jedn. sprzedaży","Rok poprzedni ","Rok bieżący","Rok ","Rok ","Rok ","Rok ","Rok "]
[null,null,null,{"$f":"E8-1","v":2012},{"$f":"'PF1 ŚWiO'!L7","v":2013},{"$f":"+E8+1","v":2014},{"$f":"+F8+1","v":2015},{"$f":"+G8+1","v":2016},{"$f":"+H8+1","v":2017},{"$f":"+I8+1","v":2018},null,1]
[]
[null,null,null,null,null,null,null,null,null,null,null,11]
[null,"2. \nProdukt/usługa","Cena w roku poprzednim","Cena bazowa","Uzasadnienie",null,null,null,null,null,null,2]
[null,{"$f":"+B9","v":0}]
[null,null,null,null,null,null,null,null,null,null,null,22]
[null,"3. \nProdukt/usługa\nTabela wartościowa",null,"Rok poprzedni ","Rok bieżący","Rok ","Rok ","Rok ","Rok ","Rok "]
[null,null,null,{"$f":"+D8","v":2012},2013,2014,2015,2016,2017,2018,null,3]
[null,{"$f":"B9","v":0},null,{"$f":"D9*C12","v":0},{"$f":"E9*D12","v":0},{"$f":"F9*D12","v":0},{"$f":"G9*D12","v":0},{"$f":"H9*D12","v":0},{"$f":"I9*D12","v":0},{"$f":"J9*D12","v":0}]
[null,"RAZEM",null,{"$f":"SUM(D15:D16)-D15","v":0},0,0,0,0,0,0,null,33]
[]
[null,"I.2. KOSZTY DZIAŁALNOŚCI OBJĘTEJ OPERACJĄ OPRTĄ NA DOTYCHCZASOWYCH ROZWIĄZANIACH"]
[]
[null,"Pozycja kosztów",null,"Rok poprzedni","Rok bieżący","Rok ","Rok ","Rok ","Rok ","Rok "]
[null,null,null,{"$f":"+D15","v":2012},2013,2014,2015,2016,2017,2018]
[null,"*amortyzacja"]
[null,"zużycie materiałów i energii"]
[null,"usługi obce (naprawy i konserwacje maszyn, budynków w tym czynsze)"]
[null,"podatki i opłaty"]
[null,"wynagrodzenia i pochodne"]
[null,"koszty finansowe"]
[null,"zakup towarów"]
[null,"ubezpieczenia majątkowe"]
[null,"pozostałe koszty"]
[null,"RAZEM",null,{"$f":"SUM(D23:D31)","v":0},{"$f":"SUM(E23:E31)","v":0},0,0,0,0,0]